bitfinex/quotes_SOLUSD_20250129
["timestamp","ask_amount","ask_price","bid_price","bid_amount"]
[1738114047682,82.5,229.23,229.17,8.07002845]
[1738114047872,8.13302845,229.26,229.19,8.07002845]
[1738114048067,0.063,229.26,229.2,1.5252]
[1738114049371,8.13302845,229.26,229.2,1.5252]
[1738114050681,0.063,229.26,229.2,1.5252]
[1738114050970,82.5,229.25,229.2,1.5252]
[1738114051176,82.5,229.25,229.21,8.07002845]
[1738114051365,0.063,229.26,229.21,8.07002845]
[1738114052461,0.063,229.26,229.21,12.43262845]
[1738114053287,0.063,229.26,229.23,8.07002845]
[1738114054686,0.063,229.26,229.23,12.43222845]
[1738114054858,0.063,229.26,229.25,8.07002845]
[1738114055062,8.13302845,229.26,229.2,1.5252]
[1738114055267,28.13302845,229.26,229.2,1.5252]
[1738114057084,0.063,229.26,229.21,8.07002845]
[1738114057281,0.063,229.26,229.23,8.07002845]
[1738114058074,8.13302845,229.26,229.2,1.5252]
[1738114058596,12.64105141,229.26,229.2,1.5252]
[1738114060003,12.64105141,229.26,229.15,3.0]
[1738114060004,12.57805141,229.24,229.16,12.57805141]
[1738114060177,12.57805141,229.22,229.15,1.5602]
[1738114060975,82.5,229.23,229.16,12.57805141]
[1738114061177,82.5,229.23,229.18,12.57805141]
[1738114071019,82.5,229.23,229.22,12.57805141]
[1738114071209,0.063,229.26,229.22,12.57805141]
[1738114071407,0.063,229.26,229.25,12.57805141]
[1738114072211,0.063,229.26,229.25,16.94005141]
[1738114074506,0.063,229.26,229.25,17.94005141]
[1738114075419,0.0001,229.26,229.25,41.84242541]
[1738114075800,0.063,229.27,229.26,1.0]
[1738114077721,0.063,229.27,229.25,17.94005141]
[1738114077892,0.063,229.27,229.25,16.94005141]
[1738114078618,0.063,229.27,229.26,28.04123143]
[1738114079414,0.063,229.27,229.26,51.94360543]
[1738114079621,0.063,229.27,229.26,52.94360543]
[1738114080008,0.063,229.31,229.29,23.902374]
[1738114080314,0.063,229.31,229.3,8.04123143]
[1738114080612,0.063,229.46,229.3,28.04123143]
[1738114080613,8.04123143,229.42,229.3,28.04123143]
[1738114080818,8.04123143,229.42,229.33,8.04123143]
[1738114083725,8.04123143,229.42,229.3,20.0]
[1738114083726,28.04123143,229.4,229.3,8.04123143]
[1738114084718,8.04123143,229.38,229.3,8.04123143]
[1738114086624,8.04123143,229.36,229.33,0.03]
[1738114086824,53.62633143,229.35,229.33,0.03]
[1738114093504,53.62633143,229.35,229.34,8.04123143]
[1738114093699,53.62633143,229.35,229.33,0.03]
[1738114098631,53.62633143,229.34,229.33,0.03]
[1738114102437,53.62633143,229.38,229.33,0.03]
[1738114103441,61.66756286,229.38,229.33,0.03]
[1738114104115,20.0,229.35,229.33,0.03]
[1738114104324,8.04123143,229.36,229.33,0.03]
[1738114108443,53.62633143,229.35,229.33,0.03]
[1738114113333,8.04123143,229.34,229.33,0.03]
[1738114117842,8.04123143,229.36,229.33,0.03]
[1738114119445,8.04123143,229.34,229.33,0.03]
[1738114122052,31.94360543,229.34,229.33,0.03]
[1738114122447,20.0,229.31,229.24,8.0504]
[1738114122643,8.04123143,229.29,229.24,8.0504]
[1738114122830,8.04123143,229.29,229.2,8.04123143]
[1738114125756,8.04123143,229.27,229.2,8.04123143]
[1738114125963,8.04123143,229.27,229.19,7.6648]
[1738114126131,106.402374,229.28,229.19,7.6648]
[1738114126132,8.04123143,229.25,229.19,7.6648]
[1738114126469,82.5,229.24,229.19,7.6648]
[1738114126958,82.5,229.24,229.2,8.04123143]
[1738114127278,82.5,229.3,229.22,8.04123143]
[1738114127559,82.5,229.3,229.27,8.04123143]
[1738114128766,82.5,229.34,229.29,8.04123143]
[1738114132056,82.5,229.34,229.29,12.40243143]
[1738114133548,82.5,229.34,229.31,8.04123143]
[1738114134486,82.563,229.34,229.31,8.04123143]
[1738114135446,82.563,229.34,229.31,12.40203143]
[1738114137368,0.063,229.34,229.33,8.04123143]
[1738114139478,0.063,229.34,229.33,12.40173143]
[1738114143581,0.063,229.34,229.33,20.47513143]
[1738114144580,0.063,229.41,229.36,20.0]
[1738114144780,0.063,229.41,229.4,8.04123143]
[1738114146169,0.063,229.41,229.4,12.40033143]
[1738114147184,0.063,229.41,229.4,20.47373143]
[1738114148493,0.063,229.41,229.4,44.37610543]
[1738114148781,0.063,229.42,229.41,24.902374]
[1738114148957,0.0001,229.42,229.41,24.902374]
[1738114149154,0.0001,229.42,229.4,20.47373143]
[1738114149685,0.0001,229.42,229.4,21.47373143]
[1738114150985,0.0001,229.42,229.4,20.47373143]
[1738114155065,0.0001,229.42,229.4,8.04123143]
[1738114155270,0.0001,229.42,229.38,8.04123143]
[1738114155580,0.0001,229.42,229.36,8.04123143]
[1738114156082,0.0001,229.42,229.34,9.64703143]
[1738114156288,8.04123143,229.41,229.34,8.04123143]
[1738114157883,8.04123143,229.41,229.33,0.03]
[1738114157884,8.04123143,229.36,229.33,0.03]
[1738114158085,8.04123143,229.34,229.33,0.03]
[1738114158395,8.04123143,229.37,229.33,0.03]
[1738114158881,31.81811543,229.4,229.33,0.03]
[1738114159084,31.81811543,229.4,229.33,8.07123143]
[1738114159476,23.776884,229.4,229.34,8.04123143]
[1738114159664,82.5,229.41,229.34,8.04123143]
[1738114160564,95.06152101,229.41,229.33,12.59152101]
[1738114161683,12.56152101,229.39,229.33,0.03]
[1738114161894,12.56152101,229.35,229.33,0.03]
[1738114162075,82.5,229.34,229.33,0.03]
[1738114166195,82.5,229.34,229.33,4.3905]
[1738114166875,82.5,229.41,229.33,4.3905]
[1738114167192,82.5,229.4,229.34,16.92172101]
[1738114167386,82.5,229.4,229.34,12.56152101]
[1738114169387,82.5,229.4,229.36,12.56152101]
[1738114170072,82.5,229.4,229.38,12.56152101]
[1738114170273,0.0001,229.42,229.38,12.56152101]
[1738114173081,0.0001,229.42,229.38,16.92102101]
[1738114173672,0.0001,229.42,229.38,12.56152101]
[1738114174590,0.0001,229.42,229.36,12.56152101]
[1738114174805,0.0001,229.42,229.34,16.95182101]
[1738114175509,0.0001,229.42,229.36,12.56152101]
[1738114175983,0.0001,229.42,229.38,12.56152101]
[1738114176199,0.0001,229.42,229.4,12.56152101]
[1738114177224,0.0001,229.42,229.36,12.56152101]
[1738114178106,0.0001,229.42,229.37,4.3597]
[1738114178997,0.0001,229.42,229.38,12.56152101]
[1738114179400,0.0001,229.42,229.4,12.56152101]
[1738114180528,0.0001,229.42,229.41,4.359]
[1738114181829,0.0001,229.42,229.4,12.56152101]
[1738114182200,0.0001,229.42,229.38,12.59152101]
[1738114182425,0.0001,229.42,229.38,16.95102101]
[1738114183828,0.0001,229.42,229.38,12.59152101]
[1738114183997,82.5,229.41,229.38,0.03]
[1738114184627,12.56162101,229.42,229.38,0.03]
[1738114184628,95.06152101,229.4,229.38,0.03]
[1738114184820,24.34385124,229.39,229.38,0.03]
[1738114186025,23.902374,229.39,229.38,0.03]
[1738114186410,36.33840501,229.39,229.38,0.03]
[1738114186610,12.56152101,229.39,229.38,0.03]
[1738114187346,12.56152101,229.41,229.38,0.03]
[1738114187716,0.0001,229.42,229.38,0.03]
[1738114188126,0.0001,229.42,229.39,12.56152101]
[1738114189335,0.0001,229.42,229.41,12.56152101]
[1738114196131,0.0001,229.42,229.41,16.92052101]
[1738114199847,0.0001,229.42,229.41,12.56152101]
[1738114200030,0.0001,229.42,229.38,0.03]
[1738114200548,12.56152101,229.41,229.38,0.03]
[1738114201826,0.0001,229.42,229.38,0.03]
[1738114202325,0.0001,229.42,229.39,12.56152101]
[1738114203463,0.0001,229.42,229.38,0.03]
[1738114204665,0.0001,229.42,229.39,12.56152101]
[1738114205852,0.0001,229.42,229.38,0.03]
[1738114206653,12.56152101,229.41,229.38,0.03]
[1738114207156,36.33840501,229.39,229.38,0.03]
[1738114207654,36.46389501,229.39,229.38,0.03]
[1738114209359,12.56152101,229.39,229.38,0.03]
[1738114209531,32.56152101,229.41,229.38,0.03]
[1738114209879,23.776884,229.4,229.38,0.03]
[1738114210154,12.68701101,229.39,229.38,0.03]
[1738114211443,12.56152101,229.39,229.38,0.03]
[1738114211642,23.776884,229.4,229.38,0.03]
[1738114212244,12.56152101,229.39,229.38,0.03]
[1738114212866,23.776884,229.4,229.24,18.97862101]
[1738114213041,23.776884,229.4,229.3,12.56152101]
[1738114213042,12.56152101,229.38,229.3,12.56152101]
[1738114213350,36.33840501,229.4,229.32,12.56152101]
[1738114213755,12.56152101,229.4,229.32,12.56152101]
[1738114213952,12.56162101,229.42,229.34,12.56152101]
[1738114214160,0.0001,229.42,229.34,16.92172101]
[1738114214536,0.0001,229.42,229.36,12.56152101]
[1738114216054,12.56162101,229.42,229.34,23.33612101]
[1738114216268,12.56162101,229.42,229.34,18.97592101]
[1738114216464,12.56162101,229.42,229.34,12.56152101]
[1738114217276,12.56162101,229.42,229.34,16.92182101]
[1738114217873,12.56152101,229.4,229.33,1.6331]
[1738114218052,12.56152101,229.38,229.32,0.03]
[1738114218649,23.776884,229.37,229.32,0.03]
[1738114218863,95.06152101,229.36,229.32,0.03]
[1738114220161,36.33840501,229.34,229.32,0.03]
[1738114221165,12.56152101,229.34,229.32,0.03]
[1738114221369,82.5,229.35,229.32,0.03]
[1738114221560,82.5,229.35,229.32,12.59152101]
[1738114221975,82.5,229.39,229.34,12.56152101]
[1738114223359,82.5,229.39,229.32,12.59152101]
[1738114223761,82.5,229.39,229.34,12.56152101]
[1738114228962,82.5,229.39,229.36,12.56152101]
[1738114229476,0.0001,229.42,229.38,12.56152101]
[1738114229875,0.0001,229.42,229.36,12.56152101]
[1738114231379,12.56152101,229.38,229.33,6.2628]
[1738114231570,82.5,229.37,229.32,0.03]
[1738114231772,12.56152101,229.36,229.32,0.03]
[1738114233783,12.56152101,229.34,229.32,0.03]
[1738114233983,23.902374,229.33,229.32,0.03]
[1738114234205,12.56152101,229.34,229.32,0.03]
[1738114235182,12.56152101,229.36,229.32,0.03]
[1738114235567,82.5,229.35,229.32,0.03]
[1738114236797,12.56152101,229.38,229.32,0.03]
[1738114237009,23.776884,229.37,229.32,0.03]
[1738114237211,12.56152101,229.38,229.32,0.03]
[1738114238394,12.56152101,229.36,229.32,0.03]
[1738114238584,23.776884,229.4,229.32,0.03]
[1738114238585,12.56152101,229.33,229.32,0.03]
[1738114238784,36.46389501,229.33,229.32,0.03]
[1738114239908,36.33840501,229.33,229.32,0.03]
[1738114240290,36.46389501,229.33,229.32,0.03]
[1738114241203,36.46389501,229.33,229.32,0.0001]
[1738114241586,37.46389501,229.33,229.32,0.0001]
[1738114241790,36.46389501,229.33,229.32,0.0001]
[1738114242105,37.46389501,229.33,229.32,0.0001]
[1738114242410,23.902374,229.32,229.31,0.0001]
[1738114242580,24.34385124,229.32,229.31,0.0001]
[1738114244004,0.12549,229.32,229.31,0.0001]
[1738114245092,23.902374,229.32,229.31,0.0001]
[1738114245603,24.34385124,229.32,229.31,0.0001]
[1738114247500,23.902374,229.32,229.31,0.0001]
[1738114250313,23.776884,229.32,229.31,0.0001]
[1738114250504,12.56152101,229.33,229.31,0.0001]
[1738114252613,12.62452101,229.33,229.31,0.0001]
[1738114252806,23.902374,229.32,229.31,0.0001]
[1738114254492,12.56152101,229.24,229.22,0.03]
[1738114254924,12.56152101,229.28,229.22,0.03]
[1738114255198,82.5,229.23,229.22,0.03]
[1738114260313,82.5,229.27,229.22,12.59152101]
[1738114260614,82.5,229.27,229.24,12.56152101]
[1738114261097,82.5,229.27,229.23,12.56152101]
[1738114261310,82.5,229.27,229.22,12.59152101]
[1738114261710,82.5,229.27,229.22,0.03]
[1738114261905,82.5,229.27,229.23,12.56152101]
[1738114262213,82.5,229.27,229.25,12.56152101]
[1738114262423,82.5,229.27,229.24,12.56152101]
[1738114263120,82.5,229.27,229.23,12.56152101]
[1738114263894,82.5,229.3,229.25,12.56152101]
[1738114264111,82.5,229.3,229.27,12.56152101]
[1738114264293,82.5,229.3,229.27,18.57362101]
[1738114264890,82.5,229.3,229.28,12.56152101]
[1738114265090,82.5,229.3,229.27,6.0121]
[1738114265612,82.5,229.3,229.27,10.3737]
[1738114266535,82.5,229.3,229.27,4.3616]
[1738114266706,95.06152101,229.29,229.23,6.4343]
[1738114267034,12.56152101,229.27,229.23,6.4343]
[1738114268135,95.06152101,229.29,229.23,6.4343]
[1738114268435,82.5,229.29,229.24,12.56152101]
[1738114269338,82.5,229.29,229.24,16.92372101]
[1738114269500,82.5,229.29,229.27,12.56152101]
[1738114269701,82.5,229.32,229.27,12.56152101]
[1738114269901,82.5,229.32,229.29,12.56152101]
[1738114270245,0.063,229.33,229.31,12.56152101]
[1738114270540,0.063,229.33,229.32,6.5525]
[1738114277931,0.063,229.33,229.32,10.9132]
[1738114278522,0.063,229.33,229.32,6.5525]
[1738114279034,0.063,229.33,229.32,10.9132]
[1738114279710,0.063,229.33,229.32,6.5525]
[1738114281350,0.063,229.33,229.31,12.56152101]
[1738114281518,0.063,229.33,229.29,1.6015]
[1738114283637,0.063,229.33,229.28,12.56152101]
[1738114283838,0.063,229.33,229.26,18.70642101]
[1738114284031,82.563,229.33,229.26,18.70642101]
[1738114286045,82.563,229.33,229.28,12.56152101]
[1738114288243,0.063,229.33,229.26,6.1449]
[1738114288435,0.063,229.33,229.32,12.56152101]
[1738114289646,0.063,229.33,229.32,16.92222101]
[1738114289950,0.063,229.33,229.32,12.56152101]
[1738114293163,0.063,229.33,229.3,12.56152101]
[1738114294367,0.063,229.33,229.32,12.56152101]
[1738114299275,0.063,229.33,229.3,12.56152101]
[1738114299779,0.063,229.33,229.28,12.56152101]
[1738114300085,0.063,229.33,229.28,16.92292101]
[1738114300455,0.063,229.33,229.31,0.03]
[1738114302781,0.063,229.33,229.32,12.56152101]
[1738114303447,0.063,229.33,229.32,14.11402101]
[1738114303762,0.063,229.33,229.32,38.01639501]
[1738114303965,0.063,229.33,229.32,49.72549501]
[1738114304749,0.063,229.36,229.35,69.02541602]
[1738114305454,0.063,229.36,229.35,70.02541602]
[1738114306755,0.063,229.36,229.35,74.38551602]
[1738114307756,0.063,229.36,229.35,60.82399501]
[1738114309176,0.063,229.36,229.35,73.38551602]
[1738114310455,0.063,229.36,229.35,76.36551602]
[1738114310657,0.0001,229.36,229.35,77.36551602]
[1738114310852,0.063,229.45,229.37,1.0]
[1738114311057,0.063,229.45,229.41,12.56152101]
[1738114314185,0.063,229.45,229.41,16.92052101]
[1738114318792,0.063,229.45,229.41,36.167011]
[1738114318996,0.063,229.45,229.41,44.012301]
[1738114320004,0.063,229.45,229.41,46.012301]
[1738114320290,0.063,229.45,229.44,28.031127]
[1738114320795,0.063,229.45,229.44,51.933501]
[1738114321308,0.063,229.45,229.44,88.416409]
[1738114321612,0.063,229.45,229.44,89.416409]
[1738114322616,0.063,229.45,229.44,74.3438516]
[1738114322785,0.063,229.45,229.44,73.3438516]
[1738114324399,0.063,229.45,229.44,60.8023128]
[1738114329411,0.0001,229.45,229.44,61.8023128]
[1738114329600,0.0001,229.45,229.44,62.8023128]
[1738114330516,0.0001,229.45,229.44,61.8023128]
[1738114330723,0.0001,229.45,229.44,12.5415388]
[1738114339120,0.0001,229.45,229.42,12.5715388]
[1738114340014,0.0001,229.45,229.44,12.5415388]
[1738114344548,0.0001,229.45,229.44,8.03079269]
[1738114345642,0.0001,229.45,229.42,8.06079269]
[1738114345943,0.0001,229.45,229.42,0.03]
[1738114347550,8.03089269,229.45,229.42,0.03]
[1738114347844,82.5,229.44,229.42,0.03]
[1738114352056,82.5,229.43,229.42,0.03]
[1738114357640,90.53079269,229.43,229.42,0.03]
[1738114358666,82.5,229.43,229.42,0.03]
[1738114363782,0.0001,229.45,229.42,8.06079269]
[1738114363945,0.0001,229.45,229.44,8.03079269]
[1738114365651,0.0001,229.45,229.44,12.38919269]
[1738114372876,0.0001,229.45,229.44,12.41919269]
[1738114374458,0.0001,229.45,229.44,0.03]
[1738114374870,8.03089269,229.45,229.44,0.03]
[1738114377975,114.43326669,229.45,229.44,0.03]
[1738114378178,32.93326669,229.45,229.44,0.03]
[1738114378559,32.93326669,229.45,229.44,0.0001]
[1738114378758,44.776884,229.43,229.42,0.0001]
[1738114378965,54.37464393,229.43,229.42,0.0001]
[1738114379292,51.93316669,229.43,229.42,0.0001]
[1738114380106,53.93316669,229.43,229.42,0.0001]
[1738114380689,58.45456669,229.43,229.42,0.0001]
[1738114381393,21.0,229.39,229.31,0.03]
[1738114381593,8.03079269,229.34,229.31,0.03]
[1738114382405,8.15628269,229.34,229.31,0.03]
[1738114382626,31.93316669,229.34,229.31,0.03]
[1738114382803,0.12549,229.32,229.31,0.03]
[1738114383023,31.93316669,229.32,229.31,0.03]
[1738114383325,32.37464393,229.32,229.31,0.03]
[1738114384309,8.03079269,229.26,229.24,0.03]
[1738114384492,82.5,229.25,229.24,0.03]
[1738114386127,31.93316669,229.25,229.24,0.03]
[1738114386341,32.37464393,229.25,229.24,0.03]
[1738114386508,8.59775993,229.25,229.24,0.03]
[1738114387032,32.37464393,229.25,229.24,0.03]
[1738114387326,8.59775993,229.25,229.24,0.03]
[1738114387535,8.15628269,229.25,229.24,0.03]
[1738114388095,8.03079269,229.27,229.24,0.03]
[1738114388731,20.0,229.25,229.24,0.03]
[1738114389228,8.03079269,229.26,229.24,0.03]
[1738114389430,20.0,229.25,229.24,0.03]
[1738114390634,8.03079269,229.29,229.24,0.03]
[1738114391032,8.03079269,229.3,229.24,0.03]
[1738114391424,20.0,229.25,229.24,0.03]
[1738114391629,8.03079269,229.26,229.24,0.03]
[1738114394353,0.56696724,229.25,229.24,0.03]
[1738114394719,24.34385124,229.25,229.24,0.03]
[1738114395023,32.37464393,229.25,229.24,0.03]
[1738114396148,33.37464393,229.25,229.24,0.03]
[1738114396949,2.12549,229.23,229.22,0.03]
[1738114397154,1.12549,229.19,229.12,0.03]
[1738114397456,31.93316669,229.16,229.12,0.03]
[1738114397744,32.37464393,229.16,229.12,0.03]
[1738114397925,8.59775993,229.16,229.12,0.03]
[1738114398732,8.15628269,229.16,229.12,0.03]
[1738114398933,33.16111347,229.16,229.12,0.03]
[1738114399850,23.902374,229.12,229.1,0.03]
[1738114400022,56.49652023,229.1,229.05,0.03]
[1738114400423,56.93799747,229.1,229.05,0.03]
[1738114401260,33.03562347,229.1,229.05,0.03]
[1738114401469,13.59414623,229.13,229.05,12.62414623]
[1738114401470,12.59414623,229.13,229.05,12.62414623]
[1738114401844,20.0,229.1,229.05,12.62414623]
[1738114403066,12.59414623,229.13,229.05,12.62414623]
[1738114404053,12.59414623,229.13,229.05,16.98994623]
[1738114406974,20.0,229.12,229.07,12.59414623]
[1738114407763,12.59414623,229.13,229.07,12.59414623]
[1738114408869,12.59414623,229.15,229.07,16.95954623]
[1738114409579,82.5,229.12,229.07,16.95954623]
[1738114411274,82.5,229.12,229.07,12.59414623]
[1738114411473,82.5,229.12,229.05,12.62414623]
[1738114411659,82.5,229.12,229.05,16.98994623]
[1738114414459,82.5,229.11,229.05,16.98994623]
[1738114415378,82.5,229.11,229.09,12.62414623]
[1738114416692,82.5,229.2,229.11,1.6609]
[1738114416878,82.5,229.19,229.15,12.59414623]
[1738114417794,82.5,229.19,229.17,12.59414623]
[1738114417968,82.5,229.19,229.15,12.59414623]
[1738114419769,82.5,229.19,229.17,12.59414623]
[1738114420169,82.5,229.19,229.15,12.59414623]
[1738114421794,82.5,229.19,229.15,16.95804623]
[1738114422592,82.5,229.19,229.16,8.05116878]
[1738114425201,82.5,229.24,229.16,12.41486878]
[1738114425375,82.5,229.23,229.18,8.05116878]
[1738114426297,82.5,229.23,229.18,12.41446878]
[1738114426506,82.5,229.23,229.18,8.05116878]
[1738114428113,90.55116878,229.23,229.16,8.05116878]
[1738114428406,8.05116878,229.21,229.14,8.05116878]
[1738114428612,8.05116878,229.21,229.12,8.05116878]
[1738114429412,82.5,229.2,229.12,8.05116878]
[1738114430079,82.5,229.2,229.12,12.41556878]
[1738114430580,82.5,229.19,229.12,8.05116878]
[1738114430781,82.5,229.18,229.12,8.05116878]
[1738114433811,8.05116878,229.17,229.11,1.6609]
[1738114434315,82.5,229.16,229.1,6.3267]
[1738114434691,8.05116878,229.17,229.1,0.03]
[1738114434692,82.5,229.15,229.1,0.03]
[1738114434893,90.55116878,229.15,229.1,0.03]
[1738114437012,20.0,229.11,229.1,0.03]
[1738114437214,8.61813602,229.11,229.1,0.03]
[1738114437417,32.39502002,229.11,229.1,0.03]
[1738114437610,23.776884,229.1,229.09,0.03]
[1738114438099,8.49264602,229.11,229.09,0.03]
[1738114438921,8.05116878,229.11,229.09,0.03]
[1738114439811,8.05116878,229.13,229.09,0.03]
[1738114440496,0.12549,229.18,229.09,0.03]
[1738114440722,12.59099954,229.14,229.09,0.03]
[1738114442215,12.59099954,229.12,229.09,0.03]
[1738114442416,82.5,229.11,229.09,0.03]
[1738114442624,12.59099954,229.1,229.09,0.03]
[1738114443319,12.71648954,229.1,229.09,0.03]
[1738114443908,36.49337354,229.1,229.09,0.03]
[1738114444314,0.12549,229.06,229.05,0.03]
[1738114444500,12.71648954,229.06,229.05,0.03]
[1738114444914,36.49337354,229.06,229.05,0.03]
[1738114447021,36.93485078,229.06,229.05,0.03]
[1738114448116,36.93485078,229.06,229.05,0.0001]
[1738114449323,38.65063818,229.06,229.05,0.0001]
[1738114450909,1.0,229.05,229.03,0.0001]
[1738114451102,49.52585032,229.04,229.03,0.0001]
[1738114452023,50.86575032,229.04,229.03,0.0001]
[1738114452205,1.0,229.0,228.88,1.5856]
[1738114452411,12.59099954,228.94,228.88,1.5856]
[1738114453120,12.59099954,228.96,228.88,1.5856]
[1738114456031,82.5,228.93,228.88,1.5856]
[1738114456825,82.5,228.93,228.89,12.59099954]
[1738114458533,82.5,228.93,228.91,12.59099954]
[1738114459734,82.5,228.93,228.91,16.95939954]
[1738114460513,82.5,228.99,228.91,16.95939954]
[1738114460728,82.5,228.98,228.93,12.59099954]
[1738114461931,82.5,228.98,228.95,12.59099954]
[1738114462320,82.5,228.98,228.97,12.59099954]
[1738114462521,82.5,228.98,228.97,8.06473844]
[1738114462721,82.5,228.98,228.97,9.59913844]
[1738114463319,82.5,229.04,228.97,9.59913844]
[1738114463519,82.5,229.03,228.99,8.06473844]
[1738114463719,0.063,229.1,229.01,8.06473844]
[1738114463720,82.5,229.06,229.01,8.06473844]
[1738114464532,0.063,229.1,229.05,12.59277162]
[1738114466123,0.063,229.1,229.07,14.14877162]
[1738114466848,0.063,229.1,229.07,1.556]
[1738114468853,0.063,229.1,229.04,6.6301]
[1738114474149,12.59277162,229.09,229.04,6.6301]
[1738114476236,12.59277162,229.07,228.99,12.59277162]
[1738114476443,82.5,229.06,228.99,12.59277162]
[1738114477237,82.5,229.05,228.99,12.59277162]
[1738114478454,82.5,229.05,228.99,12.62277162]
[1738114479054,95.09277162,229.05,228.99,0.03]
[1738114479353,0.063,229.1,228.99,0.03]
[1738114479354,12.59277162,229.03,228.99,0.03]
[1738114482838,82.5,229.02,228.99,0.03]
[1738114483046,82.5,229.01,228.99,0.03]
[1738114484656,82.5,229.01,228.99,8.09339083]
[1738114487066,82.5,229.01,228.99,0.03]
[1738114488375,82.5,229.0,228.99,0.03]
[1738114490048,0.12549,229.0,228.99,0.03]
[1738114493255,23.902374,229.0,228.99,0.03]
[1738114493575,23.902374,229.0,228.99,0.0001]
[1738114494772,36.51433763,229.0,228.99,0.0001]
[1738114500655,0.12549,228.9,228.88,0.03]
[1738114500860,12.73745363,228.9,228.88,0.03]
[1738114502075,23.902374,228.89,228.88,0.03]
[1738114502884,43.776884,228.87,228.86,0.03]
[1738114503094,56.83032487,228.87,228.86,0.03]
[1738114503291,56.95581487,228.87,228.86,0.03]
[1738114503969,20.12549,228.83,228.82,0.03]
[1738114504163,56.51433763,228.83,228.82,0.03]
[1738114504361,57.95581487,228.83,228.82,0.03]
[1738114505880,0.12549,228.78,228.68,1.5954]
[1738114506058,12.73745363,228.77,228.68,1.5954]
[1738114506262,36.95581487,228.77,228.68,1.5954]
[1738114506683,36.95581487,228.77,228.65,12.61196363]
[1738114506684,20.0,228.69,228.59,19.37088901]
[1738114506889,12.61196363,228.68,228.59,12.61196363]
[1738114508184,20.0,228.64,228.54,7.6107]
[1738114508365,12.61196363,228.61,228.54,7.6107]
[1738114508761,20.0,228.64,228.54,7.6107]
[1738114508762,12.61196363,228.63,228.55,12.61196363]
[1738114509186,20.0,228.64,228.54,7.6107]
[1738114509187,12.61196363,228.61,228.54,7.6107]
[1738114510771,12.61196363,228.63,228.55,12.61196363]
[1738114510969,12.61196363,228.65,228.57,12.61196363]
[1738114511185,12.61196363,228.67,228.59,12.61196363]
[1738114511967,12.61196363,228.67,228.6,4.3744]
[1738114513086,12.61196363,228.73,228.63,12.61196363]
[1738114513279,0.12549,228.72,228.63,12.61196363]
[1738114513479,12.61196363,228.71,228.63,12.61196363]
[1738114513965,12.61196363,228.73,228.63,12.61196363]
[1738114514166,12.61196363,228.73,228.65,12.61196363]
[1738114514768,82.5,228.74,228.65,12.61196363]
[1738114515272,12.61196363,228.73,228.65,12.61196363]
[1738114515473,12.61196363,228.76,228.69,12.61196363]
[1738114515683,12.61196363,228.78,228.69,12.61196363]
[1738114516086,12.61196363,228.78,228.71,4.3723]
[1738114517603,12.61196363,228.78,228.71,16.98426363]
[1738114518098,12.61196363,228.74,228.7,8.1836]
[1738114518278,12.61196363,228.72,228.7,8.1836]
[1738114519380,12.61196363,228.72,228.64,4.3735]
[1738114521602,20.0,228.73,228.65,16.98536363]
[1738114522106,32.61196363,228.74,228.65,16.98536363]
[1738114525706,82.5,228.76,228.65,16.98536363]
[1738114525707,95.11196363,228.76,228.69,12.61196363]
[1738114526011,82.5,228.76,228.69,12.61196363]
[1738114526712,82.5,228.76,228.7,4.3725]
[1738114528188,12.67496363,228.78,228.71,20.71786363]
[1738114528383,0.063,228.78,228.75,12.61196363]
[1738114529396,0.063,228.78,228.75,16.98346363]
[1738114529797,0.063,228.78,228.77,12.61196363]